bitfinex/quotes_BTCUSD_20250226
["timestamp","ask_amount","ask_price","bid_price","bid_amount"]
[1740553116249,4.184e-05,89117.0,89116.0,0.54533328]
[1740553116871,4.184e-05,89117.0,89116.0,0.53833328]
[1740553117096,4.184e-05,89117.0,89116.0,0.23931428]
[1740553117228,4.184e-05,89117.0,89116.0,0.40763328]
[1740553117629,4.184e-05,89117.0,89116.0,0.41463328]
[1740553118067,4.184e-05,89117.0,89116.0,0.41111573]
[1740553118270,4.184e-05,89117.0,89116.0,0.40411573]
[1740553118447,4.184e-05,89117.0,89116.0,0.23579673]
[1740553118651,4.184e-05,89117.0,89116.0,0.41111573]
[1740553118854,4.184e-05,89117.0,89116.0,0.40411573]
[1740553119167,4.184e-05,89117.0,89116.0,0.41111573]
[1740553122094,4.184e-05,89117.0,89116.0,0.41196333]
[1740553122522,0.00046564,89117.0,89116.0,0.41196333]
[1740553123916,0.00046564,89117.0,89116.0,0.24364433]
[1740553124040,0.16878364,89117.0,89116.0,0.24364433]
[1740553125314,0.16878364,89117.0,89116.0,0.2161983]
[1740553125652,0.16878364,89117.0,89116.0,0.02553807]
[1740553126014,0.3,89119.0,89116.0,0.0148476]
[1740553126217,0.168318,89117.0,89116.0,0.0148476]
[1740553126576,0.168318,89117.0,89116.0,0.0078476]
[1740553127148,0.168318,89117.0,89116.0,0.0148476]
[1740553127355,0.168318,89117.0,89116.0,0.0078476]
[1740553127512,0.168318,89117.0,89116.0,0.0118476]
[1740553127969,0.168318,89117.0,89116.0,0.0078476]
[1740553128340,0.168318,89117.0,89116.0,0.0118476]
[1740553128553,0.168318,89117.0,89116.0,0.0078476]
[1740553128991,0.168318,89117.0,89116.0,0.0008476]
[1740553129560,0.168318,89117.0,89116.0,0.0038476]
[1740553130869,0.168318,89117.0,89116.0,0.0068476]
[1740553131057,0.168318,89117.0,89116.0,0.0008476]
[1740553131426,0.168318,89117.0,89116.0,0.0018476]
[1740553131627,0.168318,89117.0,89116.0,0.0008476]
[1740553131830,0.168318,89117.0,89116.0,0.0028476]
[1740553132460,0.168318,89117.0,89116.0,0.0058476]
[1740553133070,0.168318,89117.0,89116.0,0.0028476]
[1740553133407,0.168318,89117.0,89116.0,0.0008476]
[1740553133548,0.168318,89117.0,89116.0,0.0048476]
[1740553133979,0.168318,89117.0,89116.0,0.0018476]
[1740553134371,0.168318,89117.0,89116.0,0.0008476]
[1740553134768,0.168318,89117.0,89116.0,0.0018476]
[1740553135156,0.168318,89117.0,89116.0,0.0008476]
[1740553135799,0.168318,89117.0,89116.0,0.0018476]
[1740553136426,0.168318,89117.0,89116.0,2.6720086]
[1740553136930,0.168318,89117.0,89116.0,2.68069907]
[1740553137133,0.168318,89117.0,89116.0,2.68269907]
[1740553138136,0.168318,89117.0,89116.0,2.68169907]
[1740553138330,0.168318,89117.0,89116.0,2.68069907]
[1740553139408,0.168318,89117.0,89116.0,2.68169907]
[1740553139847,0.168318,89117.0,89116.0,2.68269907]
[1740553140049,0.168318,89117.0,89116.0,2.68069907]
[1740553140449,0.168318,89117.0,89116.0,2.68369907]
[1740553140660,0.168318,89117.0,89116.0,2.68169907]
[1740553141233,0.168318,89117.0,89116.0,2.68069907]
[1740553141462,0.168318,89117.0,89116.0,2.68269907]
[1740553141657,0.168318,89117.0,89116.0,2.68569907]
[1740553142781,0.168318,89117.0,89116.0,2.68069907]
[1740553143188,0.168318,89117.0,89116.0,2.68769907]
[1740553143594,0.168318,89117.0,89116.0,2.68469907]
[1740553143883,0.168318,89117.0,89116.0,2.68769907]
[1740553146497,0.168318,89117.0,89116.0,2.68069907]
[1740553146833,0.168318,89117.0,89116.0,2.68269907]
[1740553147012,0.168318,89117.0,89116.0,2.68169907]
[1740553147385,0.168318,89117.0,89116.0,2.68369907]
[1740553147742,0.168318,89117.0,89116.0,2.68269907]
[1740553148141,0.168318,89117.0,89116.0,2.68069907]
[1740553148629,0.168318,89117.0,89116.0,2.68269907]
[1740553149848,0.0004238,89119.0,89116.0,2.68169907]
[1740553150163,0.1687378,89119.0,89118.0,0.076]
[1740553150359,0.4687378,89119.0,89118.0,0.076]
[1740553150580,0.3004238,89119.0,89118.0,0.08668789]
[1740553150709,0.2954238,89119.0,89118.0,0.08668789]
[1740553151557,0.2954238,89119.0,89118.0,0.08968789]
[1740553151760,0.2954238,89119.0,89118.0,0.09268789]
[1740553151924,0.168302,89126.0,89118.0,0.09268789]
[1740553152124,0.224396,89129.0,89121.0,0.168309]
[1740553152345,0.01348,89131.0,89119.0,0.01454085]
[1740553152681,0.01348,89131.0,89120.0,0.01068531]
[1740553152682,0.3,89125.0,89120.0,0.01068531]
[1740553152909,0.3,89125.0,89120.0,0.17899631]
[1740553153697,0.3,89125.0,89121.0,0.0769]
[1740553153999,0.168305,89124.0,89122.0,0.01068272]
[1740553154559,0.168303,89125.0,89122.0,0.01068272]
[1740553154847,0.3,89125.0,89122.0,0.01068272]
[1740553155921,0.237871,89131.0,89122.0,0.01068272]
[1740553155922,0.524396,89128.0,89122.0,0.01068272]
[1740553156119,0.168304,89125.0,89122.0,0.01068272]
[1740553156483,0.168304,89125.0,89122.0,0.01268272]
[1740553156890,0.168306,89123.0,89122.0,0.01068272]
[1740553157199,0.168306,89123.0,89122.0,0.01268272]
[1740553157399,0.224403,89126.0,89122.0,0.01068272]
[1740553157586,0.168306,89123.0,89122.0,0.01068272]
[1740553157922,0.1687298,89123.0,89122.0,0.01268272]
[1740553158085,0.0004238,89123.0,89122.0,0.01268272]
[1740553158427,0.1687298,89123.0,89122.0,0.002]
[1740553158788,0.1687298,89123.0,89122.0,0.01268272]
[1740553159131,0.1687298,89123.0,89122.0,0.01568272]
[1740553159695,0.1687298,89123.0,89122.0,0.005]
[1740553162899,0.1687298,89123.0,89122.0,3.796039]
[1740553163225,0.1687298,89123.0,89122.0,3.80672172]
[1740553167106,0.3,89129.0,89122.0,3.80672172]
[1740553167311,0.168306,89123.0,89122.0,3.80672172]
[1740553168650,0.168306,89123.0,89122.0,3.80472172]
[1740553169985,0.168306,89123.0,89122.0,3.80672172]
[1740553171605,0.1687298,89123.0,89122.0,3.80672172]
[1740553175322,0.0004238,89123.0,89122.0,3.85422172]
[1740553175691,0.1687298,89123.0,89122.0,3.85422172]
[1740553176622,0.1687298,89123.0,89122.0,3.80672172]
[1740553180223,0.524394,89129.0,89122.0,3.80672172]
[1740553180421,0.168306,89124.0,89122.0,3.80672172]
[1740553181042,0.168304,89124.0,89122.0,3.80672172]
[1740553181242,0.168306,89123.0,89122.0,3.80672172]
[1740553181467,0.168306,89123.0,89122.0,3.80372172]
[1740553182227,0.168306,89123.0,89122.0,3.80572172]
[1740553182397,0.168306,89123.0,89122.0,3.80372172]
[1740553183209,0.168306,89123.0,89122.0,3.80456992]
[1740553183422,0.168306,89123.0,89122.0,3.80656992]
[1740553183839,0.168306,89123.0,89122.0,3.80456992]
[1740553184220,0.168306,89123.0,89122.0,3.80756992]
[1740553187481,0.18175971,89125.0,89122.0,3.80756992]
[1740553187681,0.168306,89123.0,89122.0,3.80756992]
[1740553188338,0.168306,89123.0,89122.0,3.80556992]
[1740553188745,0.168306,89123.0,89122.0,3.80656992]
[1740553189200,0.168306,89123.0,89122.0,3.80556992]
[1740553189612,0.168306,89123.0,89122.0,3.80756992]
[1740553204322,0.224401,89127.0,89122.0,3.80756992]
[1740553204485,0.168301,89126.0,89122.0,3.80756992]
[1740553204937,0.168303,89125.0,89122.0,3.80756992]
[1740553205131,0.168303,89125.0,89122.0,3.80556992]
[1740553205314,0.01348,89131.0,89122.0,3.80556992]
[1740553205522,0.168306,89123.0,89122.0,3.80656992]
[1740553205721,0.168305,89124.0,89122.0,3.80656992]
[1740553205923,0.168305,89124.0,89122.0,3.80556992]
[1740553206370,0.168305,89124.0,89122.0,3.80656992]
[1740553206785,0.01348,89131.0,89123.0,0.0816]
[1740553207074,0.01348,89131.0,89124.0,0.0457]
[1740553207297,0.01348,89131.0,89130.0,0.249893]
[1740553208313,0.0004242,89141.0,89140.0,0.168274]
[1740553208519,0.0004242,89141.0,89140.0,0.39907621]
[1740553209501,0.0004242,89141.0,89140.0,0.40744862]
[1740553209908,0.0004242,89141.0,89140.0,0.14137241]
[1740553210119,0.0004242,89141.0,89140.0,0.31316307]
[1740553210571,0.16826,89148.0,89140.0,0.31316307]
[1740553210872,0.16838554,89148.0,89140.0,0.31179066]
[1740553211073,0.16838554,89148.0,89140.0,0.32399664]
[1740553211230,0.168263,89146.0,89140.0,0.15572264]
[1740553211435,0.00012554,89148.0,89140.0,0.16272264]
[1740553211695,0.00012554,89148.0,89141.0,0.224363]
[1740553212713,0.00012554,89148.0,89141.0,0.168271]
[1740553212894,0.16838454,89148.0,89141.0,0.168271]
[1740553213098,0.16838454,89148.0,89141.0,0.174271]
[1740553213411,0.00012554,89148.0,89144.0,0.168266]
[1740553213796,0.00012554,89148.0,89142.0,0.09026136]
[1740553214180,0.00012554,89148.0,89142.0,0.25853136]
[1740553214380,0.00012554,89148.0,89142.0,0.09026136]
[1740553214904,0.00012554,89148.0,89144.0,0.006]
[1740553215844,0.01815257,89148.0,89144.0,0.012]
[1740553216204,0.01815257,89148.0,89144.0,0.180266]
[1740553216633,0.01815257,89148.0,89145.0,0.168265]
[1740553216834,0.01815257,89148.0,89144.0,0.006]
[1740553217034,0.01815257,89148.0,89145.0,0.168263]
[1740553217211,0.01815257,89148.0,89143.0,0.168267]
[1740553217653,0.01815257,89148.0,89144.0,0.01665432]
[1740553217890,0.01815257,89148.0,89147.0,0.168261]
[1740553218134,0.01815257,89148.0,89147.0,0.27322249]
[1740553218369,0.01815257,89148.0,89147.0,0.27165229]
[1740553218841,0.01815257,89148.0,89147.0,0.08885044]
[1740553219104,0.01815257,89148.0,89147.0,0.25711144]
[1740553219602,0.01815257,89148.0,89147.0,0.26411144]
[1740553220550,0.01815257,89148.0,89147.0,0.27111144]
[1740553223404,0.01815257,89148.0,89147.0,0.02465044]
[1740553224440,0.01815257,89148.0,89147.0,0.19291144]
[1740553226134,0.01815257,89148.0,89147.0,0.02465044]
[1740553229406,0.01815257,89148.0,89147.0,0.19291144]
[1740553229706,0.224325,89157.0,89147.0,0.19291144]
[1740553230205,0.224327,89156.0,89147.0,0.02465044]
[1740553230438,0.168246,89155.0,89147.0,0.02465044]
[1740553231440,0.168246,89155.0,89147.0,0.01765044]
[1740553231741,0.168246,89155.0,89147.0,0.18291144]
[1740553231899,0.168246,89155.0,89147.0,0.18691144]
[1740553232101,0.03588568,89158.0,89147.0,0.01465044]
[1740553232304,0.0004241,89159.0,89147.0,0.01065044]
[1740553232657,0.168253,89151.0,89148.0,0.01064915]
[1740553232847,0.224332,89154.0,89148.0,0.01064915]
[1740553233070,0.03510696,89158.0,89147.0,0.004]
[1740553233208,0.16825,89153.0,89149.0,0.01064786]
[1740553233410,0.16825,89153.0,89148.0,0.01064915]
[1740553233750,0.224332,89154.0,89150.0,0.01064657]
[1740553233958,0.168251,89153.0,89149.0,0.01064786]
[1740553234135,0.168251,89153.0,89151.0,0.01064528]
[1740553234341,0.03492083,89158.0,89147.0,0.003]
[1740553234583,0.168246,89156.0,89147.0,0.003]
[1740553234723,0.168246,89156.0,89146.0,0.168261]
[1740553234724,0.168246,89155.0,89148.0,0.01464915]
[1740553235061,0.168248,89154.0,89149.0,0.005]
[1740553235220,0.224323,89157.0,89149.0,0.005]
[1740553235453,0.224323,89157.0,89150.0,0.01064657]
[1740553235654,0.168251,89152.0,89150.0,0.01064657]
[1740553235849,0.168254,89151.0,89147.0,0.003]
[1740553236421,0.168253,89152.0,89148.0,0.01064915]
[1740553236640,0.168254,89151.0,89148.0,0.01064915]
[1740553236795,0.168254,89151.0,89150.0,0.002]
[1740553237524,0.168251,89153.0,89150.0,0.004]
[1740553237723,0.03588889,89158.0,89150.0,0.004]
[1740553237971,0.03588889,89158.0,89151.0,0.01064528]
[1740553238183,0.168251,89152.0,89151.0,0.01064528]
[1740553238518,0.168251,89152.0,89150.0,0.002]
[1740553238725,0.163251,89152.0,89150.0,0.004]
[1740553238926,0.163251,89152.0,89151.0,0.01064528]
[1740553239244,0.0004239,89154.0,89148.0,0.004]
[1740553239410,0.16825,89153.0,89145.0,0.213965]
[1740553239610,0.16825,89153.0,89149.0,0.01064786]
[1740553239911,0.16825,89153.0,89150.0,0.005]
[1740553240152,0.16825,89153.0,89150.0,0.01564657]
[1740553240357,0.16825,89153.0,89151.0,0.005]
[1740553240759,0.16825,89153.0,89145.0,0.0497]
[1740553240967,0.168254,89151.0,89149.0,0.005]
[1740553241136,0.2247569,89154.0,89149.0,0.005]
[1740553241342,0.168251,89153.0,89145.0,0.0497]
[1740553241561,0.2247569,89154.0,89151.0,0.005]
[1740553241769,0.168253,89152.0,89151.0,0.005]
[1740553242072,0.168253,89152.0,89145.0,0.0497]
[1740553242275,0.168253,89152.0,89149.0,0.006]
[1740553242679,0.168253,89152.0,89150.0,0.01064657]
[1740553242952,0.168253,89152.0,89150.0,0.01564657]
[1740553243121,0.2247569,89154.0,89150.0,0.01564657]
[1740553243351,0.168253,89151.0,89150.0,0.01064657]
[1740553243692,0.168253,89151.0,89149.0,0.006]
[1740553244021,0.168255,89150.0,89149.0,0.006]
[1740553244221,0.168253,89152.0,89145.0,0.0457]
[1740553244420,0.0004239,89154.0,89150.0,0.006]
[1740553244809,0.168254,89151.0,89150.0,0.006]
[1740553245010,0.468254,89151.0,89150.0,0.006]
[1740553245865,0.468263,89146.0,89145.0,0.006]
[1740553246762,0.468265,89145.0,89144.0,0.0008478]
[1740553248530,0.3,89146.0,89144.0,0.0048478]
[1740553248733,0.168265,89145.0,89144.0,0.0048478]
[1740553250064,0.168265,89145.0,89144.0,0.0088478]
[1740553250493,0.168265,89145.0,89144.0,0.0048478]
[1740553250904,0.168265,89145.0,89144.0,0.0088478]
[1740553252437,0.168265,89145.0,89144.0,0.0048478]
[1740553252812,0.168265,89145.0,89144.0,0.0078478]
[1740553252992,0.168265,89145.0,89144.0,0.0038478]
[1740553253413,0.168265,89145.0,89144.0,0.0078478]
[1740553256052,0.168265,89145.0,89144.0,0.0008478]
[1740553256393,0.168265,89145.0,89144.0,0.0088478]
[1740553256773,0.468265,89145.0,89144.0,0.0088478]
[1740553257379,0.468265,89145.0,89144.0,0.0118478]
[1740553260905,0.468265,89145.0,89144.0,0.0088478]
[1740553261114,0.468265,89145.0,89144.0,0.0118478]
[1740553262568,0.468265,89145.0,89144.0,0.0088478]
[1740553263008,0.469265,89145.0,89144.0,0.0008478]
[1740553266641,0.168306,89123.0,89119.0,0.0008476]
[1740553266825,0.16834781,89123.0,89119.0,0.0008476]
[1740553267021,0.46834781,89123.0,89122.0,3.80256992]
[1740553267925,0.46834781,89123.0,89122.0,3.80956992]
[1740553269277,0.46834781,89123.0,89122.0,3.81656992]
[1740553269857,0.46834781,89123.0,89122.0,3.80956992]
[1740553270248,0.47034781,89123.0,89122.0,3.80956992]
[1740553270687,0.46834781,89123.0,89122.0,3.80956992]
[1740553270860,0.46834781,89123.0,89122.0,3.80256992]
[1740553271067,0.47134781,89123.0,89122.0,3.80656992]
[1740553271490,0.47134781,89123.0,89122.0,3.80256992]
[1740553271688,0.47334781,89123.0,89122.0,3.80256992]
[1740553273114,0.47034781,89123.0,89122.0,3.80256992]
[1740553273330,0.46442781,89123.0,89122.0,3.80256992]
[1740553276584,0.48305163,89123.0,89122.0,1.86648135]
[1740553277792,0.46442781,89123.0,89122.0,1.74939135]
[1740553280525,0.46442781,89123.0,89122.0,1.65699629]
[1740553280761,0.54712781,89123.0,89122.0,1.65699629]
[1740553281074,0.54712781,89123.0,89122.0,1.47319629]
[1740553281295,0.54712781,89123.0,89122.0,1.43941378]
[1740553281473,0.66098477,89123.0,89122.0,1.35211608]
[1740553282034,0.66098477,89123.0,89122.0,1.32776608]
[1740553282262,0.66098477,89123.0,89122.0,1.23152608]
[1740553282612,0.66098477,89123.0,89122.0,1.10158367]
[1740553282771,0.65898477,89123.0,89122.0,1.10158367]
[1740553283089,0.65698477,89123.0,89122.0,1.07458367]
[1740553283437,0.65698477,89123.0,89095.0,0.045]
[1740553283438,0.168365,89092.0,89091.0,0.0793]
[1740553283617,0.468365,89092.0,89091.0,0.0793]
[1740553283819,0.3,89092.0,89091.0,0.08957766]
[1740553284024,0.3,89092.0,89091.0,0.0793]
[1740553284259,0.3,89092.0,89091.0,0.08957766]
[1740553284659,0.3,89092.0,89091.0,0.0957032]
[1740553284867,0.301,89092.0,89091.0,0.0957032]
[1740553285104,0.301,89092.0,89091.0,0.08542554]
[1740553285277,0.301,89092.0,89091.0,0.0957032]
[1740553285488,0.34396423,89092.0,89091.0,0.0957032]
[1740553285659,0.34496423,89092.0,89091.0,0.1017032]
[1740553290222,0.51332923,89092.0,89091.0,0.1017032]
[1740553290515,0.51332923,89092.0,89091.0,0.01212554]
[1740553290718,0.58794565,89092.0,89091.0,0.01212554]
[1740553291123,0.51332923,89092.0,89091.0,0.01212554]
[1740553291717,0.34496423,89092.0,89091.0,0.01212554]
[1740553291919,0.51332923,89092.0,89091.0,0.01212554]
[1740553292302,0.51232923,89092.0,89091.0,0.00612554]
[1740553292685,0.51232923,89092.0,89091.0,0.00812554]
[1740553293085,0.51132923,89092.0,89091.0,0.00012554]
[1740553293584,0.51132923,89092.0,89091.0,0.00312554]
[1740553293811,0.51132923,89092.0,89091.0,0.00112554]
[1740553294293,0.51132923,89092.0,89091.0,0.00212554]
[1740553297463,0.51132923,89092.0,89091.0,0.00197374]
[1740553297621,0.51132923,89092.0,89091.0,0.00297374]
[1740553297820,0.21132923,89092.0,89091.0,0.00297374]
[1740553298463,0.21132923,89092.0,89091.0,0.00197374]
[1740553298744,0.21132923,89092.0,89091.0,0.00297374]
[1740553300425,0.04296423,89092.0,89091.0,0.00297374]
[1740553300765,0.168364,89093.0,89091.0,0.00297374]
[1740553301291,0.168365,89092.0,89091.0,0.00297374]
[1740553301693,0.168365,89092.0,89091.0,0.00197374]
[1740553301893,0.224473,89098.0,89091.0,0.00197374]
[1740553302214,0.168365,89092.0,89091.0,0.00197374]
[1740553302739,0.168365,89092.0,89091.0,0.00097374]
[1740553302958,0.168365,89092.0,89091.0,0.00197374]
[1740553303389,0.168365,89092.0,89091.0,0.00097374]
[1740553303585,0.168365,89092.0,89091.0,0.00197374]
[1740553303785,0.54313276,89092.0,89091.0,0.00197374]
[1740553303987,0.47698326,89092.0,89091.0,0.00197374]
[1740553304289,0.47698326,89092.0,89091.0,0.00097374]
[1740553304655,0.47798326,89092.0,89091.0,0.00097374]
[1740553305497,0.47798326,89092.0,89091.0,0.00197374]
[1740553305778,0.52928429,89092.0,89091.0,0.00197374]
[1740553305984,0.52928429,89092.0,89091.0,0.00097374]
[1740553306422,0.53028429,89092.0,89091.0,0.00097374]
[1740553306753,0.53228429,89092.0,89091.0,0.00097374]
[1740553306981,0.53028429,89092.0,89091.0,0.00097374]
[1740553307387,0.53228429,89092.0,89091.0,0.00097374]
[1740553308186,0.53028429,89092.0,89091.0,0.00097374]
[1740553308372,0.53428429,89092.0,89091.0,0.00097374]
[1740553308963,0.53228429,89092.0,89091.0,0.00097374]
[1740553309370,0.53628429,89092.0,89091.0,0.00097374]
[1740553309667,0.53228429,89092.0,89091.0,0.00097374]
[1740553309901,0.53728429,89092.0,89091.0,0.00097374]
[1740553310219,0.53228429,89092.0,89091.0,0.00097374]
[1740553310727,0.53528429,89092.0,89091.0,0.00097374]
[1740553312031,0.06117587,89092.0,89091.0,0.00097374]
[1740553312565,0.52954087,89092.0,89091.0,0.00097374]
[1740553312797,0.47823984,89092.0,89091.0,0.00097374]
[1740553314968,0.00987484,89092.0,89091.0,0.00097374]
[1740553315167,0.17823984,89092.0,89091.0,0.04697374]
[1740553315367,0.17823984,89092.0,89091.0,0.0572514]
[1740553316219,0.00587484,89092.0,89091.0,0.0572514]
[1740553316521,0.00687484,89092.0,89091.0,0.0572514]
[1740553317166,0.17223984,89092.0,89091.0,0.0572514]
[1740553317374,0.17223984,89092.0,89091.0,0.04697374]
[1740553317578,0.00487484,89092.0,89091.0,0.04697374]
[1740553318515,0.17323984,89092.0,89091.0,0.04697374]
[1740553319093,0.00487484,89092.0,89091.0,0.04697374]
[1740553320225,0.17323984,89092.0,89091.0,0.04697374]
[1740553323784,0.47323984,89092.0,89091.0,0.00097374]
[1740553332576,0.49635142,89092.0,89091.0,0.00097374]
[1740553333364,0.49677552,89092.0,89091.0,0.00097374]
[1740553334375,0.49577552,89092.0,89091.0,0.00097374]
[1740553334757,0.49977552,89092.0,89091.0,0.00097374]
[1740553336000,0.49877552,89092.0,89091.0,0.00097374]
[1740553336381,0.47966394,89092.0,89091.0,0.00097374]
[1740553336780,0.47566394,89092.0,89091.0,0.00097374]
[1740553337049,0.47966394,89092.0,89091.0,0.00097374]
[1740553337633,0.47566394,89092.0,89091.0,0.00097374]
[1740553338042,0.47366394,89092.0,89091.0,0.00097374]
[1740553338458,0.47466394,89092.0,89091.0,0.00097374]
[1740553338821,0.47466394,89092.0,89091.0,0.07947374]
[1740553339898,0.0034241,89092.0,89091.0,0.07947374]
[1740553340072,0.0034241,89092.0,89091.0,0.12747374]
[1740553340277,0.0034241,89092.0,89091.0,0.1377514]
[1740553341062,0.0014241,89092.0,89091.0,0.1377514]
[1740553341287,0.0004241,89092.0,89091.0,0.1377514]
[1740553341489,0.0014241,89092.0,89091.0,0.1377514]
[1740553342232,0.4697891,89092.0,89091.0,0.1397514]
[1740553342616,0.3034241,89092.0,89091.0,0.1397514]
[1740553343242,0.3014241,89092.0,89091.0,0.1397514]
[1740553343525,0.3014241,89092.0,89091.0,0.1417514]
[1740553344059,0.4697891,89092.0,89091.0,0.1417514]
[1740553344234,0.3014241,89092.0,89091.0,0.1417514]
[1740553345265,0.3014241,89092.0,89091.0,0.13147374]
[1740553346387,0.4697891,89092.0,89091.0,0.13147374]
[1740553346591,0.3014241,89092.0,89091.0,0.13147374]
[1740553346794,0.4697891,89092.0,89091.0,0.13147374]
[1740553346929,0.4697891,89092.0,89091.0,0.1417514]
[1740553347130,0.3014241,89092.0,89091.0,0.13147374]
[1740553347330,0.3014241,89092.0,89091.0,0.1417514]
[1740553347571,0.3014241,89092.0,89091.0,0.13147374]
[1740553348159,0.4697891,89092.0,89091.0,0.13147374]
[1740553348335,0.3014241,89092.0,89091.0,0.13147374]
[1740553349664,0.0014241,89092.0,89091.0,0.3101184]
[1740553350101,0.224394,89129.0,89092.0,0.049]
[1740553350306,0.168326,89113.0,89106.0,0.1293]
[1740553350502,0.224403,89126.0,89107.0,0.08995699]
[1740553350761,0.0083908,89127.0,89110.0,0.0797]
[1740553350923,0.168326,89113.0,89110.0,0.0797]
[1740553351085,0.3,89121.0,89111.0,0.00925182]
[1740553351292,0.3,89113.0,89111.0,0.00925182]
[1740553351499,0.3,89113.0,89110.0,0.0797]
[1740553352044,0.33730027,89113.0,89110.0,0.0797]
[1740553352241,0.50562527,89113.0,89110.0,0.0797]
[1740553352446,0.03730027,89113.0,89110.0,0.0797]
[1740553352667,0.3,89111.0,89110.0,0.0797]
[1740553352823,0.468329,89111.0,89110.0,0.0797]
[1740553353024,0.3,89111.0,89110.0,0.0797]
[1740553353649,0.0004241,89123.0,89110.0,0.09291145]
[1740553353881,0.3,89115.0,89110.0,0.09291145]
[1740553354080,0.468321,89115.0,89110.0,0.09291145]
[1740553354760,0.50581242,89115.0,89110.0,0.09291145]
[1740553355014,0.50581242,89115.0,89110.0,0.08991145]
[1740553355227,0.03749142,89115.0,89110.0,0.09191145]
[1740553355703,0.468319,89117.0,89110.0,0.09191145]
[1740553356417,0.468319,89117.0,89110.0,0.09591145]
[1740553356642,0.000424,89115.0,89110.0,0.09191145]
[1740553356777,0.300424,89115.0,89110.0,0.09191145]
[1740553356987,0.300424,89115.0,89110.0,0.09291145]
[1740553357211,0.33881218,89115.0,89110.0,0.09091145]
[1740553357406,0.33881218,89115.0,89110.0,0.08991145]
[1740553357612,0.33881218,89115.0,89110.0,0.09191145]
[1740553357811,0.03881218,89115.0,89110.0,0.09191145]
[1740553358020,0.03881218,89115.0,89110.0,0.26024245]
[1740553358219,0.03881218,89115.0,89110.0,0.09491145]
[1740553358615,0.20713418,89115.0,89110.0,0.09491145]
[1740553358816,0.33881218,89115.0,89110.0,0.09491145]
[1740553359030,0.168327,89112.0,89110.0,0.09491145]
[1740553359229,0.168327,89112.0,89110.0,0.0847]
[1740553359421,0.3,89112.0,89111.0,0.01021015]
[1740553359624,0.3,89112.0,89110.0,0.0847]
[1740553360108,0.3,89112.0,89110.0,0.0827]
[1740553360269,0.3,89112.0,89111.0,0.01021015]
[1740553361808,0.3,89112.0,89111.0,0.01421015]
[1740553362007,0.3,89112.0,89111.0,0.004]
[1740553362149,0.3,89112.0,89111.0,0.01421015]
[1740553363293,0.3,89112.0,89111.0,0.01721015]
[1740553364861,0.468327,89112.0,89111.0,0.01721015]
[1740553365204,0.468327,89112.0,89111.0,0.007]
[1740553367990,0.468751,89112.0,89111.0,0.007]
[1740553372895,0.300424,89112.0,89111.0,0.007]
[1740553373119,0.300424,89112.0,89111.0,0.01712293]
[1740553373341,0.468751,89112.0,89111.0,0.01712293]
[1740553373538,0.468751,89112.0,89111.0,0.007]
[1740553378198,0.468751,89112.0,89111.0,0.004]
[1740553379352,0.168352,89099.0,89098.0,0.083]
[1740553379835,0.168352,89099.0,89098.0,0.09313972]
[1740553380297,0.468352,89099.0,89098.0,0.01013972]
[1740553380699,0.168365,89092.0,89091.0,0.08287374]
[1740553381077,0.168365,89092.0,89091.0,0.09302251]
[1740553381273,0.168365,89092.0,89091.0,0.08287374]
[1740553381473,0.168365,89092.0,89091.0,0.09302251]
[1740553381703,0.168365,89092.0,89091.0,0.11225552]
[1740553381920,0.169365,89092.0,89091.0,0.11925552]
[1740553382709,0.170365,89092.0,89091.0,0.12625552]
[1740553382883,0.170365,89092.0,89091.0,0.11925552]
[1740553383086,0.170365,89092.0,89091.0,0.10002251]
[1740553383336,0.170365,89092.0,89091.0,0.09902251]
[1740553383667,0.171365,89092.0,89091.0,0.10502251]
[1740553384308,0.21456281,89094.0,89091.0,0.10502251]
[1740553384483,0.3,89096.0,89091.0,0.10502251]
[1740553384687,0.168354,89098.0,89091.0,0.10502251]
[1740553384864,0.168359,89096.0,89091.0,0.10502251]
[1740553385295,0.224473,89098.0,89091.0,0.10502251]
[1740553385478,0.168359,89095.0,89091.0,0.10502251]
[1740553385675,0.168359,89095.0,89091.0,0.09302251]
[1740553385883,0.168359,89095.0,89091.0,0.09702251]
[1740553386803,0.168359,89095.0,89091.0,0.09302251]
[1740553387003,0.168359,89095.0,89091.0,0.09802251]
[1740553387280,0.168359,89095.0,89091.0,0.10302251]
[1740553387640,0.00825449,89106.0,89091.0,0.09802251]
[1740553387889,0.168363,89094.0,89091.0,0.09802251]
[1740553388090,0.168363,89094.0,89091.0,0.10302251]
[1740553388612,0.23270649,89106.0,89091.0,0.09802251]
[1740553388613,0.224468,89100.0,89091.0,0.09802251]
[1740553388757,0.224461,89103.0,89091.0,0.09302251]
[1740553389105,0.23270649,89106.0,89091.0,0.09302251]
[1740553389106,0.168351,89100.0,89091.0,0.09802251]
[1740553389325,0.224454,89105.0,89091.0,0.09802251]
[1740553389465,0.168352,89099.0,89091.0,0.09802251]
[1740553389660,0.00825449,89106.0,89091.0,0.09802251]
[1740553389919,0.168365,89093.0,89091.0,0.09302251]
[1740553390298,0.224478,89096.0,89091.0,0.09502251]
[1740553390504,0.168365,89093.0,89091.0,0.10002251]
[1740553390689,0.168365,89093.0,89091.0,0.09802251]
[1740553390890,0.3,89104.0,89091.0,0.09302251]
[1740553391090,0.168357,89096.0,89091.0,0.09302251]
[1740553391393,0.168357,89096.0,89091.0,0.09802251]
[1740553391592,0.468355,89098.0,89091.0,0.09802251]
[1740553391806,0.468355,89098.0,89091.0,0.09302251]
[1740553392006,0.3,89098.0,89091.0,0.09302251]
[1740553392411,0.16836,89095.0,89091.0,0.09302251]
[1740553392625,0.168358,89096.0,89091.0,0.09302251]
[1740553392827,0.168358,89096.0,89091.0,0.09702251]
[1740553393026,0.168359,89095.0,89091.0,0.09702251]
[1740553393309,0.3,89101.0,89091.0,0.09702251]
[1740553393532,0.3,89095.0,89091.0,0.09302251]
[1740553393728,0.168361,89094.0,89091.0,0.09802251]
[1740553394020,0.168365,89093.0,89091.0,0.09302251]
[1740553394449,0.524481,89095.0,89091.0,0.09602251]
[1740553394450,0.168365,89092.0,89091.0,0.09602251]
[1740553395170,0.168365,89092.0,89091.0,0.09302251]
[1740553395971,0.168365,89092.0,89091.0,0.09802251]
[1740553396175,0.168365,89092.0,89091.0,0.10302251]
[1740553396378,0.168365,89092.0,89091.0,0.09802251]
[1740553396565,0.168365,89092.0,89091.0,0.01612251]
[1740553396776,0.469365,89092.0,89091.0,0.02212251]
[1740553397187,0.469365,89092.0,89091.0,0.01197374]
[1740553397436,0.469365,89092.0,89091.0,0.00697374]